fUST/lending_fUST_20250805
["ID","MTS","AMOUNT","RATE_DAILY","PERIOD"]
[377320239,1754340653421,-460.0,0.00034246,2]
[377320240,1754340653429,-460.0,0.00034246,2]
[377320241,1754340653438,-460.0,0.00034246,2]
[377320242,1754340653448,-460.0,0.00034246,2]
[377320243,1754340653457,-460.0,0.00034246,2]
[377320244,1754340653466,-460.0,0.00034246,2]
[377320245,1754340653475,-460.0,0.00034246,2]
[377320246,1754340653484,-151.0,0.00034246,14]
[377320247,1754340653493,-460.0,0.00034246,2]
[377320248,1754340653502,-151.0,0.00034246,14]
[377320249,1754340653512,-460.0,0.00034246,2]
[377320250,1754340653521,-460.0,0.00034246,2]
[377320251,1754340653530,-151.0,0.00034246,14]
[377320252,1754340653541,-328.72024568,0.00034246,2]
[377320253,1754340653552,-460.0,0.00034246,2]
[377320254,1754340653561,-460.0,0.00034246,2]
[377320255,1754340653571,-460.0,0.00034246,2]
[377320256,1754340653580,-460.0,0.00034246,2]
[377320257,1754340653590,-460.0,0.00034246,2]
[377320258,1754340653599,-460.0,0.00034246,2]
[377320259,1754340653608,-460.0,0.00034246,2]
[377320260,1754340653618,-460.0,0.00034246,2]
[377320261,1754340653628,-460.0,0.00034246,2]
[377320262,1754340653637,-460.0,0.00034246,2]
[377320263,1754340653647,-1259.66,0.00034246,2]
[377320264,1754340653656,-460.0,0.00034246,2]
[377320265,1754340653665,-460.0,0.00034246,2]
[377320266,1754340653675,-460.0,0.00034246,2]
[377320267,1754340653685,-460.0,0.00034246,2]
[377320268,1754340653694,-460.0,0.00034246,2]
[377320269,1754340653704,-460.0,0.00034246,2]
[377320270,1754340653715,-5166.09,0.00034246,2]
[377320271,1754340653724,-151.0,0.00034246,14]
[377320272,1754340653734,-460.0,0.00034246,2]
[377320273,1754340653744,-460.0,0.00034246,2]
[377320274,1754340653754,-460.0,0.00034246,2]
[377320275,1754340653763,-460.0,0.00034246,2]
[377320276,1754340653772,-4368.52,0.00034246,2]
[377320277,1754340653782,-2550.51,0.00034246,2]
[377320278,1754340653792,-460.0,0.00034246,2]
[377320279,1754340653802,-460.0,0.00034246,2]
[377320280,1754340653812,-460.0,0.00034246,2]
[377320281,1754340653821,-1004.67,0.00034246,2]
[377320282,1754340653831,-460.0,0.00034246,2]
[377320283,1754340653840,-460.0,0.00034246,2]
[377320284,1754340653850,-460.0,0.00034246,2]
[377320285,1754340653859,-460.0,0.00034246,2]
[377320286,1754340653868,-460.0,0.00034246,2]
[377320287,1754340653878,-460.0,0.00034246,2]
[377320288,1754340653888,-460.0,0.00034246,2]
[377320289,1754340653897,-344.798651,0.00034246,14]
[377320290,1754340653907,-344.798651,0.00034246,14]
[377320291,1754340653917,-460.0,0.00034246,2]
[377320292,1754340653927,-460.0,0.00034246,2]
[377320293,1754340653937,-460.0,0.00034246,2]
[377320294,1754340653947,-473.48,0.00034246,2]
[377320295,1754340653956,-460.0,0.00034246,2]
[377320296,1754340653966,-460.0,0.00034246,2]
[377320297,1754340653977,-460.0,0.00034246,2]
[377320298,1754340653987,-460.0,0.00034246,2]
[377320299,1754340653996,-460.0,0.00034246,2]
[377320300,1754340654006,-945.19,0.00034246,2]
[377320301,1754340654015,-460.0,0.00034246,2]
[377320302,1754340654025,-460.0,0.00034246,2]
[377320303,1754340654034,-460.0,0.00034246,2]
[377320304,1754340654044,-460.0,0.00034246,2]
[377320305,1754340654054,-460.0,0.00034246,2]
[377320306,1754340654063,-460.0,0.00034246,2]
[377320307,1754340654073,-460.0,0.00034246,2]
[377320308,1754340654082,-460.0,0.00034246,2]
[377320309,1754340654092,-460.0,0.00034246,2]
[377320310,1754340654101,-460.0,0.00034246,2]
[377320311,1754340654111,-460.0,0.00034246,2]
[377320312,1754340654120,-460.0,0.00034246,2]
[377320313,1754340654130,-460.0,0.00034246,2]
[377320314,1754340654140,-460.0,0.00034246,2]
[377320315,1754340654149,-817.17,0.00034246,2]
[377320316,1754340654159,-1070.06,0.00034246,2]
[377320317,1754340654168,-460.0,0.00034246,2]
[377320318,1754340654178,-6244.75,0.00034246,2]
[377320319,1754340654188,-460.0,0.00034246,2]
[377320320,1754340654197,-1910.52,0.00034246,2]
[377320321,1754340654208,-710.67,0.00034246,2]
[377320322,1754340654217,-460.0,0.00034246,2]
[377320323,1754340654227,-460.0,0.00034246,2]
[377320324,1754340654238,-460.0,0.00034246,2]
[377320325,1754340654248,-1601.57,0.00034246,2]
[377320326,1754340654259,-460.0,0.00034246,2]
[377320327,1754340654268,-460.0,0.00034246,2]
[377320328,1754340654278,-460.0,0.00034246,2]
[377320329,1754340654288,-460.0,0.00034246,2]
[377320330,1754340654298,-460.0,0.00034246,2]
[377320331,1754340654308,-260.07782866,0.00034246,2]
[377320332,1754340654318,-460.0,0.00034246,2]
[377320333,1754340654327,-460.0,0.00034246,2]
[377320334,1754340654336,-460.0,0.00034246,2]
[377320335,1754340654346,-1964.74,0.00034246,2]
[377320336,1754340654355,-2947.65,0.00034246,2]
[377320337,1754340654365,-615.23,0.00034246,2]
[377320338,1754340654374,-460.0,0.00034246,2]
[377320339,1754340654383,-460.0,0.00034246,2]
[377320340,1754340654392,-460.0,0.00034246,2]
[377320341,1754340654402,-494.28,0.00034246,2]
[377320342,1754340654411,-460.0,0.00034246,2]
[377320343,1754340654420,-460.0,0.00034246,2]
[377320344,1754340654430,-460.0,0.00034246,2]
[377320345,1754340654439,-162.7465644,0.00034247,30]
[377320346,1754340654449,-160.115295,0.00034247,2]
[377320347,1754340654458,-160.2486403,0.00034247,30]
[377320348,1754340654468,-163.3085741,0.00034247,30]
[377320349,1754340654478,-160.2486403,0.00034247,30]
[377320350,1754340654487,-206.0,0.0003425,30]
[377320351,1754340654496,-1000.0,0.00034268,5]
[377320352,1754340654506,-500.0,0.00034295,5]
[377320353,1754340654515,-500.0,0.00034295,5]
[377320354,1754340654525,-200.0,0.00034329,120]
[377320355,1754340654534,-430.6428066,0.00034399,30]
[377320356,1754340654548,-430.6428066,0.00034399,30]
[377320357,1754340654557,-160.2834123,0.00034438,30]
[377320358,1754340654566,-578.8327873,0.00034438,30]
[377320359,1754340654575,-578.8327873,0.00034438,30]
[377320360,1754340654587,-578.8327873,0.00034438,30]
[377320361,1754340654596,-578.8327873,0.00034438,30]
[377320362,1754340654606,-635.0,0.00034447,2]
[377320363,1754340654617,-2148.0,0.00034447,2]
[377320364,1754340654626,-970.0,0.00034447,2]
[377320365,1754340654636,-200.0,0.000345,120]
[377320366,1754340654645,-2400.0,0.00034516,5]
[377320367,1754340654656,-2000.0,0.00034516,5]
[377320368,1754340654666,-2000.0,0.00034516,5]
[377320369,1754340654675,-460.0,0.0003452,2]
[377320370,1754340654684,-460.0,0.0003452,2]
[377320371,1754340654694,-460.0,0.0003452,2]
[377320372,1754340654703,-460.0,0.0003452,2]
[377320373,1754340654713,-151.0,0.0003452,14]
[377320374,1754340654722,-460.0,0.0003452,2]
[377320375,1754340654732,-460.0,0.0003452,2]
[377320376,1754340654741,-151.0,0.0003452,14]
[377320377,1754340654750,-882.44,0.0003452,2]
[377320378,1754340654759,-151.0,0.0003452,14]
[377320379,1754340654768,-460.0,0.0003452,2]
[377320380,1754340654777,-569.1236699,0.0003452,2]
[377320381,1754340654787,-460.0,0.0003452,2]
[377320382,1754340654796,-460.0,0.0003452,2]
[377320383,1754340654806,-460.0,0.0003452,2]
[377320384,1754340654815,-460.0,0.0003452,2]
[377320385,1754340654824,-1299.76,0.0003452,2]
[377320386,1754340654834,-2365.37,0.0003452,2]
[377320387,1754340654843,-460.0,0.0003452,2]
[377320388,1754340654852,-460.0,0.0003452,2]
[377320389,1754340654862,-460.0,0.0003452,2]
[377320390,1754340654871,-460.0,0.0003452,2]
[377320391,1754340654881,-460.0,0.0003452,2]
[377320392,1754340654890,-460.0,0.0003452,2]
[377320393,1754340654900,-460.0,0.0003452,2]
[377320394,1754340654910,-620.86,0.0003452,2]
[377320395,1754340654920,-460.0,0.0003452,2]
[377320396,1754340654930,-315.56433102,0.0003452,2]
[377320397,1754340654940,-460.0,0.0003452,2]
[377320398,1754340654949,-460.0,0.0003452,2]
[377320399,1754340654959,-701.71,0.0003452,2]
[377320400,1754340654968,-465.08,0.0003452,2]
[377320401,1754340654977,-483.5,0.0003452,2]
[377320402,1754340654987,-460.0,0.0003452,2]
[377320403,1754340654996,-460.0,0.0003452,2]
[377320404,1754340655006,-460.0,0.0003452,2]
[377320405,1754340655015,-460.0,0.0003452,2]
[377320406,1754340655024,-460.0,0.0003452,2]
[377320407,1754340655034,-460.0,0.0003452,2]
[377320408,1754340655044,-460.0,0.0003452,2]
[377320409,1754340655053,-460.0,0.0003452,2]
[377320410,1754340655063,-441.31,0.0003452,2]
[377320411,1754340655073,-1558.41,0.0003452,2]
[377320412,1754340655082,-460.0,0.0003452,2]
[377320413,1754340655091,-460.0,0.0003452,2]
[377320414,1754340655101,-460.0,0.0003452,2]
[377320415,1754340655111,-460.0,0.0003452,2]
[377320416,1754340655120,-460.0,0.0003452,2]
[377320417,1754340655130,-460.0,0.0003452,2]
[377320418,1754340655140,-460.0,0.0003452,2]
[377320419,1754340655149,-460.0,0.0003452,2]
[377320420,1754340655159,-460.0,0.0003452,2]
[377320421,1754340655168,-460.0,0.0003452,2]
[377320422,1754340655178,-460.0,0.0003452,2]
[377320423,1754340655187,-460.0,0.0003452,2]
[377320424,1754340655196,-460.0,0.0003452,2]
[377320425,1754340655206,-460.0,0.0003452,2]
[377320426,1754340655215,-460.0,0.0003452,2]
[377320427,1754340655225,-460.0,0.0003452,2]
[377320428,1754340655234,-460.0,0.0003452,2]
[377320429,1754340655244,-529.86582371,0.0003452,2]
[377320430,1754340655253,-460.0,0.0003452,2]
[377320431,1754340655262,-238.5225579,0.0003452,2]
[377320432,1754340655271,-460.0,0.0003452,2]
[377320433,1754340655281,-460.0,0.0003452,2]
[377320434,1754340655290,-323.87307705,0.0003452,2]
[377320435,1754340655300,-460.0,0.0003452,2]
[377320436,1754340655309,-460.0,0.0003452,2]
[377320437,1754340655319,-460.0,0.0003452,2]
[377320438,1754340655328,-460.0,0.0003452,2]
[377320439,1754340655337,-1259.66,0.0003452,2]
[377320440,1754340655346,-460.0,0.0003452,2]
[377320441,1754340655355,-460.0,0.0003452,2]
[377320442,1754340655365,-460.0,0.0003452,2]
[377320443,1754340655374,-460.0,0.0003452,2]
[377320444,1754340655384,-268.68194583,0.0003452,2]
[377320445,1754340655393,-5166.09,0.0003452,2]
[377320446,1754340655402,-460.0,0.0003452,2]
[377320447,1754340655412,-460.0,0.0003452,2]
[377320448,1754340655421,-460.0,0.0003452,2]
[377320449,1754340655432,-460.0,0.0003452,2]
[377320450,1754340655441,-4368.52,0.0003452,2]
[377320451,1754340655451,-2550.51,0.0003452,2]
[377320452,1754340655553,-460.0,0.0003452,2]
[377320453,1754340655563,-460.0,0.0003452,2]
[377320454,1754340655572,-1004.67,0.0003452,2]
[377320455,1754340655583,-460.0,0.0003452,2]
[377320456,1754340655592,-460.0,0.0003452,2]
[377320457,1754340655601,-460.0,0.0003452,2]
[377320458,1754340655611,-460.0,0.0003452,2]
[377320459,1754340655623,-460.0,0.0003452,2]
[377320460,1754340655633,-311.87112823,0.0003452,2]
[377320461,1754340655643,-460.0,0.0003452,2]
[377320462,1754340655652,-460.0,0.0003452,2]
[377320463,1754340655662,-460.0,0.0003452,2]
[377320464,1754340655671,-473.48,0.0003452,2]
[377320465,1754340655681,-460.0,0.0003452,2]
[377320466,1754340655690,-460.0,0.0003452,2]
[377320467,1754340655700,-460.0,0.0003452,2]
[377320468,1754340655710,-460.0,0.0003452,2]
[377320469,1754340655720,-460.0,0.0003452,2]
[377320470,1754340655730,-945.19,0.0003452,2]
[377320471,1754340655739,-511.64,0.0003452,2]
[377320472,1754340655749,-460.0,0.0003452,2]
[377320473,1754340655758,-460.0,0.0003452,2]
[377320474,1754340655767,-460.0,0.0003452,2]
[377320475,1754340655776,-460.0,0.0003452,2]
[377320476,1754340655786,-460.0,0.0003452,2]
[377320477,1754340655796,-460.0,0.0003452,2]
[377320478,1754340655805,-460.0,0.0003452,2]
[377320479,1754340655815,-571.13,0.0003452,2]
[377320480,1754340655825,-460.0,0.0003452,2]
[377320481,1754340655834,-460.0,0.0003452,2]
[377320482,1754340655844,-460.0,0.0003452,2]
[377320483,1754340655853,-460.0,0.0003452,2]
[377320484,1754340655863,-817.17,0.0003452,2]
[377320485,1754340655872,-1070.06,0.0003452,2]
[377320486,1754340655883,-460.0,0.0003452,2]
[377320487,1754340655892,-6244.75,0.0003452,2]
[377320488,1754340655902,-460.0,0.0003452,2]
[377320489,1754340655912,-1910.52,0.0003452,2]
[377320490,1754340655921,-710.67,0.0003452,2]
[377320491,1754340655930,-460.0,0.0003452,2]
[377320492,1754340655940,-460.0,0.0003452,2]
[377320493,1754340655949,-460.0,0.0003452,2]
[377320494,1754340655959,-1601.57,0.0003452,2]
[377320495,1754340655968,-504.52,0.0003452,2]
[377320496,1754340655977,-232.3,0.0003452,2]
[377320497,1754340655986,-460.0,0.0003452,2]
[377320498,1754340655995,-460.0,0.0003452,2]
[377320499,1754340656005,-460.0,0.0003452,2]
[377320500,1754340656014,-460.0,0.0003452,2]
[377320501,1754340656023,-460.0,0.0003452,2]
[377320502,1754340656032,-2947.65,0.0003452,2]
[377320503,1754340656041,-1964.74,0.0003452,2]
[377320504,1754340656051,-615.23,0.0003452,2]
[377320505,1754340656060,-460.0,0.0003452,2]
[377320506,1754340656069,-460.0,0.0003452,2]
[377320507,1754340656078,-460.0,0.0003452,2]
[377320508,1754340656087,-494.28,0.0003452,2]
[377320509,1754340656096,-460.0,0.0003452,2]
[377320510,1754340656106,-460.0,0.0003452,2]
[377320511,1754340656115,-1600.0,0.0003452,7]
[377320512,1754340656124,-162.7465644,0.00034521,30]
[377320513,1754340656133,-460.0,0.00034544,2]
[377320514,1754340656142,-200.0,0.00034606,15]
[377320515,1754340656151,-200.0,0.00034606,15]
[377320516,1754340656160,-200.0,0.00034606,15]
[377320517,1754340656169,-240.0,0.00034606,15]
[377320518,1754340656179,-195.3,0.00034629,15]
[377320519,1754340656187,-155.0,0.00034676,2]
[377320520,1754340656197,-162.7465644,0.00034767,30]
[377320521,1754340656206,-600.0,0.00034768,5]
[377320522,1754340656215,-460.0,0.00034794,2]
[377320523,1754340656225,-460.0,0.00034794,2]
[377320524,1754340656234,-460.0,0.00034794,2]
[377320525,1754340656243,-460.0,0.00034794,2]
[377320526,1754340656252,-460.0,0.00034794,2]
[377320527,1754340656261,-882.44,0.00034794,2]
[377320528,1754340656270,-460.0,0.00034794,2]
[377320529,1754340656279,-574.27607608,0.00034794,2]
[377320530,1754340656288,-460.0,0.00034794,2]
[377320531,1754340656297,-460.0,0.00034794,2]
[377320532,1754340656306,-460.0,0.00034794,2]
[377320533,1754340656315,-1299.76,0.00034794,2]
[377320534,1754340656325,-2365.37,0.00034794,2]
[377320535,1754340656334,-460.0,0.00034794,2]
[377320536,1754340656343,-529.64,0.00034794,2]
[377320537,1754340656352,-460.0,0.00034794,2]
[377320538,1754340656361,-572.77,0.00034794,2]
[377320539,1754340656370,-460.0,0.00034794,2]
[377320540,1754340656379,-460.0,0.00034794,2]
[377320541,1754340656388,-470.1,0.00034794,2]
[377320542,1754340656398,-620.86,0.00034794,2]
[377320543,1754340656408,-460.0,0.00034794,2]
[377320544,1754340656417,-460.0,0.00034794,2]
[377320545,1754340656426,-460.0,0.00034794,2]
[377320546,1754340656435,-701.71,0.00034794,2]
[377320547,1754340656444,-483.5,0.00034794,2]
[377320548,1754340656453,-460.0,0.00034794,2]
[377320549,1754340656463,-460.0,0.00034794,2]
[377320550,1754340656472,-460.0,0.00034794,2]
[377320551,1754340656481,-460.0,0.00034794,2]
[377320552,1754340656491,-460.0,0.00034794,2]
[377320553,1754340656500,-460.0,0.00034794,2]
[377320554,1754340656509,-460.0,0.00034794,2]
[377320555,1754340656518,-1558.41,0.00034794,2]
[377320556,1754340656527,-460.0,0.00034794,2]
[377320557,1754340656536,-460.0,0.00034794,2]
[377320558,1754340656549,-382.81607924,0.00034794,2]
[377320559,1754340656558,-460.0,0.00034794,2]
[377320560,1754340656567,-460.0,0.00034794,2]
[377320561,1754340656577,-460.0,0.00034794,2]
[377320562,1754340656587,-460.0,0.00034794,2]
[377320563,1754340656597,-460.0,0.00034794,2]
[377320564,1754340656606,-460.0,0.00034794,2]
[377320565,1754340656616,-460.0,0.00034794,2]
[377320566,1754340656625,-460.0,0.00034794,2]
[377320567,1754340656634,-460.0,0.00034794,2]
[377320568,1754340656643,-460.0,0.00034794,2]
[377320569,1754340656652,-460.0,0.00034794,2]
[377320570,1754340656661,-460.0,0.00034794,2]
[377320571,1754340656671,-460.0,0.00034794,2]
[377320572,1754340656679,-460.0,0.00034794,2]
[377320573,1754340656688,-460.0,0.00034794,2]
[377320574,1754340656698,-460.0,0.00034794,2]
[377320575,1754340656707,-460.0,0.00034794,2]
[377320576,1754340656717,-460.0,0.00034794,2]
[377320577,1754340656726,-1259.66,0.00034794,2]
[377320578,1754340656735,-460.0,0.00034794,2]
[377320579,1754340656745,-460.0,0.00034794,2]
[377320580,1754340656755,-460.0,0.00034794,2]
[377320581,1754340656764,-460.0,0.00034794,2]
[377320582,1754340656773,-5166.09,0.00034794,2]
[377320583,1754340656783,-460.0,0.00034794,2]
[377320584,1754340656792,-460.0,0.00034794,2]
[377320585,1754340656803,-460.0,0.00034794,2]
[377320586,1754340656812,-4368.52,0.00034794,2]
[377320587,1754340656822,-2550.51,0.00034794,2]
[377320588,1754340656832,-404.23422925,0.00034794,2]
[377320589,1754340656841,-460.0,0.00034794,2]
[377320590,1754340656851,-1004.67,0.00034794,2]
[377320591,1754340656860,-523.69,0.00034794,2]
[377320592,1754340656870,-460.0,0.00034794,2]
[377320593,1754340656879,-460.0,0.00034794,2]
[377320594,1754340656888,-460.0,0.00034794,2]
[377320595,1754340656897,-460.0,0.00034794,2]
[377320596,1754340656907,-460.0,0.00034794,2]
[377320597,1754340656916,-438.41414649,0.00034794,2]
[377320598,1754340656932,-460.0,0.00034794,2]
[377320599,1754340656942,-473.48,0.00034794,2]
[377320600,1754340656951,-460.0,0.00034794,2]
[377320601,1754340656961,-460.0,0.00034794,2]
[377320602,1754340656971,-606.26,0.00034794,2]
[377320603,1754340656980,-180.9,0.00034794,2]
[377320604,1754340656989,-460.0,0.00034794,2]
[377320605,1754340656998,-945.19,0.00034794,2]
[377320606,1754340657008,-460.0,0.00034794,2]
[377320607,1754340657017,-596.33,0.00034794,2]
[377320608,1754340657027,-460.0,0.00034794,2]
[377320609,1754340657036,-460.0,0.00034794,2]
[377320610,1754340657045,-569.2,0.00034794,2]
[377320611,1754340657055,-460.0,0.00034794,2]
[377320612,1754340657064,-460.0,0.00034794,2]
[377320613,1754340657074,-460.0,0.00034794,2]
[377320614,1754340657083,-460.0,0.00034794,2]
[377320615,1754340657092,-817.17,0.00034794,2]
[377320616,1754340657102,-1070.06,0.00034794,2]
[377320617,1754340657111,-460.0,0.00034794,2]
[377320618,1754340657121,-6244.75,0.00034794,2]
[377320619,1754340657130,-460.0,0.00034794,2]
[377320620,1754340657139,-1910.52,0.00034794,2]
[377320621,1754340657148,-710.67,0.00034794,2]
[377320622,1754340657158,-460.0,0.00034794,2]
[377320623,1754340657167,-460.0,0.00034794,2]
[377320624,1754340657176,-1601.57,0.00034794,2]
[377320625,1754340657185,-164.63,0.00034794,2]
[377320626,1754340657195,-460.0,0.00034794,2]
[377320627,1754340657204,-309.90527745,0.00034794,2]
[377320628,1754340657213,-460.0,0.00034794,2]
[377320629,1754340657223,-460.9,0.00034794,2]
[377320630,1754340657233,-460.0,0.00034794,2]
[377320631,1754340657242,-2947.65,0.00034794,2]
[377320632,1754340657252,-1964.74,0.00034794,2]
[377320633,1754340657262,-615.23,0.00034794,2]
[377320634,1754340657271,-460.0,0.00034794,2]
[377320635,1754340657280,-460.0,0.00034794,2]
[377320636,1754340657290,-460.0,0.00034794,2]
[377320637,1754340657299,-494.28,0.00034794,2]
[377320638,1754340657309,-460.0,0.00034794,2]
[377320639,1754340657318,-460.0,0.00034794,2]
[377320640,1754340657328,-430.6428066,0.00034795,30]
[377320641,1754340657337,-9075.15,0.000348,14]
[377320642,1754340657346,-35380.46,0.000349,14]
[377320643,1754340657356,-430.6428066,0.00034932,30]
[377320644,1754340657365,-23335.19683072,0.00035,2]
[377320645,1754340657375,-1536.66604721,0.00035,30]
[377320646,1754340657384,-154.56468,0.00035,20]
[377320647,1754340657394,-151.0,0.00035,14]
[377320648,1754340657404,-32491.81,0.00035,30]
[377320649,1754340657413,-20000.0,0.00035,7]
[377320650,1754340657423,-162.7465644,0.00035041,30]
[377320651,1754340657432,-3000.0,0.00035064,5]
[377320652,1754340657441,-2500.0,0.00035064,5]
[377320653,1754340657451,-2500.0,0.00035064,5]
[377320654,1754340657460,-200.0,0.00035066,120]
[377320655,1754340657470,-491.8,0.00035068,2]
[377320656,1754340657479,-386.33,0.00035068,2]
[377320657,1754340657488,-460.0,0.00035068,2]
[377320658,1754340657498,-460.0,0.00035068,2]
[377320659,1754340657507,-882.44,0.00035068,2]
[377320660,1754340657517,-460.0,0.00035068,2]
[377320661,1754340657526,-460.0,0.00035068,2]
[377320662,1754340657536,-460.0,0.00035068,2]
[377320663,1754340657554,-1299.76,0.00035068,2]
[377320664,1754340657569,-2365.37,0.00035068,2]
[377320665,1754340657579,-460.0,0.00035068,2]
[377320666,1754340657589,-460.0,0.00035068,2]
[377320667,1754340657598,-460.0,0.00035068,2]
[377320668,1754340657607,-460.0,0.00035068,2]
[377320669,1754340657708,-620.86,0.00035068,2]
[377320670,1754340657718,-460.0,0.00035068,2]
[377320671,1754340657727,-460.0,0.00035068,2]
[377320672,1754340657737,-182.75,0.00035068,2]
[377320673,1754340657748,-701.71,0.00035068,2]
[377320674,1754340657758,-483.5,0.00035068,2]
[377320675,1754340657767,-460.0,0.00035068,2]
[377320676,1754340657777,-460.0,0.00035068,2]
[377320677,1754340657786,-359.42791692,0.00035068,2]
[377320678,1754340657795,-460.0,0.00035068,2]
[377320679,1754340657805,-460.0,0.00035068,2]
[377320680,1754340657814,-151.0,0.00035068,14]
[377320681,1754340657824,-460.0,0.00035068,2]
[377320682,1754340657834,-314.07,0.00035068,2]
[377320683,1754340657843,-1558.41,0.00035068,2]
[377320684,1754340657853,-151.0,0.00035068,14]
[377320685,1754340657862,-487.52,0.00035068,2]
[377320686,1754340657872,-460.0,0.00035068,2]
[377320687,1754340657882,-151.0,0.00035068,14]
[377320688,1754340657891,-523.71,0.00035068,2]
[377320689,1754340657901,-460.0,0.00035068,2]
[377320690,1754340657910,-460.0,0.00035068,2]
[377320691,1754340657920,-460.0,0.00035068,2]
[377320692,1754340657930,-460.0,0.00035068,2]
[377320693,1754340657939,-460.0,0.00035068,2]
[377320694,1754340657948,-460.0,0.00035068,2]
[377320695,1754340657957,-460.0,0.00035068,2]
[377320696,1754340657967,-460.0,0.00035068,2]
[377320697,1754340657977,-460.0,0.00035068,2]
[377320698,1754340657987,-460.0,0.00035068,2]
[377320699,1754340657996,-460.0,0.00035068,2]
[377320700,1754340658006,-460.0,0.00035068,2]
[377320701,1754340658015,-460.0,0.00035068,2]
[377320702,1754340658025,-1259.66,0.00035068,2]
[377320703,1754340658034,-489.03,0.00035068,2]
[377320704,1754340658044,-460.0,0.00035068,2]
[377320705,1754340658054,-460.0,0.00035068,2]
[377320706,1754340658063,-460.0,0.00035068,2]
[377320707,1754340658073,-5166.09,0.00035068,2]
[377320708,1754340658083,-181.92,0.00035068,2]
[377320709,1754340658092,-460.0,0.00035068,2]
[377320710,1754340658102,-460.0,0.00035068,2]
[377320711,1754340658112,-4368.52,0.00035068,2]
[377320712,1754340658122,-2550.51,0.00035068,2]
[377320713,1754340658132,-460.0,0.00035068,2]
[377320714,1754340658141,-1004.67,0.00035068,2]
[377320715,1754340658151,-460.0,0.00035068,2]
[377320716,1754340658161,-157.82,0.00035068,2]
[377320717,1754340658170,-460.0,0.00035068,2]
[377320718,1754340658180,-526.32,0.00035068,2]
[377320719,1754340658190,-460.0,0.00035068,2]
[377320720,1754340658199,-473.48,0.00035068,2]
[377320721,1754340658208,-460.0,0.00035068,2]
[377320722,1754340658219,-460.0,0.00035068,2]
[377320723,1754340658228,-460.0,0.00035068,2]
[377320724,1754340658238,-945.19,0.00035068,2]
[377320725,1754340658259,-460.0,0.00035068,2]
[377320726,1754340658270,-460.0,0.00035068,2]
[377320727,1754340658280,-460.0,0.00035068,2]
[377320728,1754340658290,-460.0,0.00035068,2]
[377320729,1754340658301,-460.0,0.00035068,2]
[377320730,1754340658311,-460.0,0.00035068,2]
[377320731,1754340658321,-460.0,0.00035068,2]
[377320732,1754340658331,-817.17,0.00035068,2]
[377320733,1754340658342,-1070.06,0.00035068,2]
[377320734,1754340658352,-460.0,0.00035068,2]
[377320735,1754340658362,-460.0,0.00035068,2]
[377320736,1754340658372,-6244.75,0.00035068,2]
[377320737,1754340658382,-1910.52,0.00035068,2]
[377320738,1754340658392,-710.67,0.00035068,2]